[Event "*** SCC Grand Prix: Titled Tuesday Blitz"]
[Site "Chess.com"]
[Date "2020.09.29"]
[Round "1"]
[White "FloMaster111"]
[Black "Oscar-Luna"]
[Result "0-1"]
[WhiteElo "2489"]
[BlackElo "2142"]
[TimeControl "180+1"]
[EndTime "10:05:42 PDT"]
[Termination "Oscar-Luna won by checkmate"]

1. e4 {[%clk 0:02:59.9]} 1... e6 {[%clk 0:02:59.3]} 2. d4 {[%clk 0:02:58.8]}
2... d5 {[%clk 0:02:58.7]} 3. Nd2 {[%clk 0:02:57.3]} 3... Nc6 {[%clk 0:02:57.6]}
4. Ngf3 {[%clk 0:02:56]} 4... Nf6 {[%clk 0:02:56.3]} 5. e5 {[%clk 0:02:56.5]}
5... Nd7 {[%clk 0:02:56.8]} 6. c4 {[%clk 0:02:57.4]} 6... f6 {[%clk 0:02:46.1]}
7. cxd5 {[%clk 0:02:55.4]} 7... exd5 {[%clk 0:02:45.5]} 8. Bb5 {[%clk
0:02:44.8]} 8... fxe5 {[%clk 0:01:43.1]} 9. Nxe5 {[%clk 0:02:34.8]} 9... Ncxe5
{[%clk 0:01:37.2]} 10. dxe5 {[%clk 0:02:35.7]} 10... c6 {[%clk 0:01:37.1]} 11.
e6 {[%clk 0:02:20.8]} 11... Nf6 {[%clk 0:01:33.3]} 12. Bd3 {[%clk 0:02:20]}
12... Bxe6 {[%clk 0:01:31.2]} 13. O-O {[%clk 0:02:17.5]} 13... Kf7 {[%clk
0:01:27.8]} 14. Nf3 {[%clk 0:02:16.5]} 14... h6 {[%clk 0:01:17.1]} 15. Ne5+
{[%clk 0:02:14.7]} 15... Kg8 {[%clk 0:01:12]} 16. Ng6 {[%clk 0:02:10.3]} 16...
Bd6 {[%clk 0:01:09.4]} 17. Nxh8 {[%clk 0:02:07.5]} 17... Kxh8 {[%clk 0:01:09.4]}
18. h3 {[%clk 0:02:04.8]} 18... Qd7 {[%clk 0:01:08]} 19. f4 {[%clk 0:01:58.5]}
19... Bxh3 {[%clk 0:00:43.6]} 20. gxh3 {[%clk 0:01:56.9]} 20... Qxh3 {[%clk
0:00:43.4]} 21. Qf3 {[%clk 0:01:56.7]} 21... Bc5+ {[%clk 0:00:42.6]} 22. Qf2
{[%clk 0:01:40.7]} 22... Ng4 {[%clk 0:00:31.3]} 23. Bf5 {[%clk 0:00:52.8]} 23...
Qh2# {[%clk 0:00:25]} 0-1

[Event "*** SCC Grand Prix: Titled Tuesday Blitz"]
[Site "Chess.com"]
[Date "2020.09.29"]
[Round "1"]
[White "ChessWarrior7197"]
[Black "mortngabriel"]
[Result "1-0"]
[WhiteElo "2948"]
[BlackElo "2446"]
[TimeControl "180+1"]
[EndTime "10:05:46 PDT"]
[Termination "ChessWarrior7197 won by resignation"]

1. e4 {[%clk 0:03:00.9]} 1... c6 {[%clk 0:02:55.7]} 2. d4 {[%clk 0:03:00.3]}
2... d5 {[%clk 0:02:56.3]} 3. exd5 {[%clk 0:03:01.2]} 3... cxd5 {[%clk
0:02:56.2]} 4. Bd3 {[%clk 0:03:01.8]} 4... Nc6 {[%clk 0:02:55.6]} 5. c3 {[%clk
0:03:01.8]} 5... Nf6 {[%clk 0:02:54.7]} 6. Bf4 {[%clk 0:03:01.4]} 6... Bg4
{[%clk 0:02:52.5]} 7. Qb3 {[%clk 0:03:01.4]} 7... Qc8 {[%clk 0:02:47]} 8. Nd2
{[%clk 0:03:00.9]} 8... e6 {[%clk 0:02:44.6]} 9. Ngf3 {[%clk 0:03:01.2]} 9...
Bh5 {[%clk 0:02:41.1]} 10. O-O {[%clk 0:03:00]} 10... Be7 {[%clk 0:02:37.4]} 11.
Rae1 {[%clk 0:02:56.4]} 11... Bg6 {[%clk 0:02:33.9]} 12. Bxg6 {[%clk 0:02:55.5]}
12... hxg6 {[%clk 0:02:34.8]} 13. h4 {[%clk 0:02:56.2]} 13... Qd7 {[%clk
0:02:10.7]} 14. g3 {[%clk 0:02:55.1]} 14... Nh5 {[%clk 0:02:02]} 15. Bg5 {[%clk
0:02:53.4]} 15... Bxg5 {[%clk 0:01:46.1]} 16. Nxg5 {[%clk 0:02:51.5]} 16...
O-O-O {[%clk 0:01:36]} 17. Ndf3 {[%clk 0:02:46.7]} 17... Nf6 {[%clk 0:01:11.5]}
18. Qc2 {[%clk 0:02:39.8]} 18... Kb8 {[%clk 0:00:58.1]} 19. Qd2 {[%clk
0:02:38.7]} 19... Rhf8 {[%clk 0:00:54.2]} 20. b4 {[%clk 0:02:37.4]} 20... Qc7
{[%clk 0:00:47.2]} 21. a4 {[%clk 0:02:31.8]} 21... Rc8 {[%clk 0:00:40.9]} 22. a5
{[%clk 0:02:32]} 22... Ne7 {[%clk 0:00:33.3]} 23. Ne5 {[%clk 0:02:32.3]} 23...
Nf5 {[%clk 0:00:33.1]} 24. Rc1 {[%clk 0:02:28.4]} 24... Nd6 {[%clk 0:00:32.7]}
25. Rfe1 {[%clk 0:02:15]} 25... Nfe4 {[%clk 0:00:22.4]} 26. Nxe4 {[%clk
0:02:15.5]} 26... Nxe4 {[%clk 0:00:21.8]} 27. Qf4 {[%clk 0:02:16]} 27... Ka8
{[%clk 0:00:14]} 28. c4 {[%clk 0:02:16]} 28... f6 {[%clk 0:00:07.2]} 29. cxd5
{[%clk 0:02:15.6]} 29... fxe5 {[%clk 0:00:04.5]} 30. Rxc7 {[%clk 0:01:57.6]}
30... exf4 {[%clk 0:00:04.3]} 31. Rxc8+ {[%clk 0:01:58.5]} 31... Rxc8 {[%clk
0:00:04.9]} 32. Rxe4 {[%clk 0:01:59.4]} 32... exd5 {[%clk 0:00:05.8]} 33. Rxf4
{[%clk 0:01:59.3]} 33... a6 {[%clk 0:00:05.8]} 34. Rg4 {[%clk 0:01:59.8]} 34...
Rc4 {[%clk 0:00:06.2]} 35. Rxg6 {[%clk 0:01:59.9]} 35... Rxd4 {[%clk 0:00:04.9]}
36. Rxg7 {[%clk 0:02:00.4]} 36... Rxb4 {[%clk 0:00:05.2]} 37. h5 {[%clk
0:02:01]} 37... Rb5 {[%clk 0:00:04.3]} 38. h6 {[%clk 0:02:01.2]} 38... d4 {[%clk
0:00:05.2]} 39. h7 {[%clk 0:02:02]} 1-0

[Event "*** SCC Grand Prix: Titled Tuesday Blitz"]
[Site "Chess.com"]
[Date "2020.09.29"]
[Round "1"]
[White "VMikhalevski"]
[Black "AniJak"]
[Result "1-0"]
[WhiteElo "2722"]
[BlackElo "2373"]
[TimeControl "180+1"]
[EndTime "10:05:47 PDT"]
[Termination "VMikhalevski won by resignation"]

1. d4 {[%clk 0:03:00.6]} 1... d5 {[%clk 0:02:59.4]} 2. c4 {[%clk 0:02:59.5]}
2... c6 {[%clk 0:02:59.4]} 3. Nf3 {[%clk 0:02:59]} 3... Nf6 {[%clk 0:02:58.8]}
4. Nc3 {[%clk 0:02:55.7]} 4... e6 {[%clk 0:02:58.8]} 5. e3 {[%clk 0:02:51.9]}
5... Nbd7 {[%clk 0:02:57.4]} 6. Qc2 {[%clk 0:02:49.1]} 6... Bd6 {[%clk
0:02:56.4]} 7. Be2 {[%clk 0:02:47.5]} 7... O-O {[%clk 0:02:55.9]} 8. O-O {[%clk
0:02:46.8]} 8... Qe7 {[%clk 0:02:56]} 9. b3 {[%clk 0:02:42.2]} 9... b6 {[%clk
0:02:55.3]} 10. Bb2 {[%clk 0:02:40.9]} 10... Bb7 {[%clk 0:02:54.7]} 11. Rfd1
{[%clk 0:02:37.2]} 11... Rac8 {[%clk 0:02:53.7]} 12. Rac1 {[%clk 0:02:33.5]}
12... Rfe8 {[%clk 0:02:46.3]} 13. Qb1 {[%clk 0:02:31.5]} 13... Bb8 {[%clk
0:02:38.1]} 14. Bf1 {[%clk 0:02:23]} 14... c5 {[%clk 0:02:34.2]} 15. cxd5 {[%clk
0:02:22.9]} 15... Nxd5 {[%clk 0:02:27.3]} 16. Nxd5 {[%clk 0:02:21.5]} 16... exd5
{[%clk 0:02:14.8]} 17. Bb5 {[%clk 0:02:12.7]} 17... a6 {[%clk 0:02:06.2]} 18.
Bxd7 {[%clk 0:02:10.9]} 18... Qxd7 {[%clk 0:02:07.1]} 19. Ne5 {[%clk 0:02:09.4]}
19... Bxe5 {[%clk 0:02:03.2]} 20. dxe5 {[%clk 0:02:08.4]} 20... d4 {[%clk
0:01:39.7]} 21. f3 {[%clk 0:02:07.6]} 21... Rxe5 {[%clk 0:01:38]} 22. exd4
{[%clk 0:02:07.4]} 22... cxd4 {[%clk 0:01:29.9]} 23. Rxd4 {[%clk 0:02:05.9]}
23... Rd5 {[%clk 0:01:22.3]} 24. Rxd5 {[%clk 0:01:52]} 24... Qxd5 {[%clk
0:01:17.8]} 25. Rd1 {[%clk 0:01:50]} 25... Qg5 {[%clk 0:01:10]} 26. Qd3 {[%clk
0:01:45.3]} 26... h6 {[%clk 0:00:56.3]} 27. h4 {[%clk 0:01:33.9]} 27... Qxh4
{[%clk 0:00:46]} 28. Qd7 {[%clk 0:01:33.5]} 28... Rc2 {[%clk 0:00:24.5]} 29.
Qd8+ {[%clk 0:01:11]} 29... Kh7 {[%clk 0:00:24.1]} 30. Qxh4 {[%clk 0:01:09.9]}
1-0

[Event "*** SCC Grand Prix: Titled Tuesday Blitz"]
[Site "Chess.com"]
[Date "2020.09.29"]
[Round "1"]
[White "WIDBIFS"]
[Black "tk22h"]
[Result "1/2-1/2"]
[WhiteElo "2620"]
[BlackElo "2313"]
[TimeControl "180+1"]
[EndTime "10:05:49 PDT"]
[Termination "Game drawn by agreement"]

1. d4 {[%clk 0:02:57.1]} 1... Nf6 {[%clk 0:02:59]} 2. Nf3 {[%clk 0:02:57.1]}
2... g6 {[%clk 0:02:59]} 3. g3 {[%clk 0:02:57.2]} 3... Bg7 {[%clk 0:02:59.1]} 4.
Bg2 {[%clk 0:02:58.1]} 4... O-O {[%clk 0:02:59.5]} 5. O-O {[%clk 0:02:58.8]}
5... d5 {[%clk 0:02:59.7]} 6. c4 {[%clk 0:02:59.2]} 6... dxc4 {[%clk 0:03:00]}
7. Na3 {[%clk 0:02:59.8]} 7... Nc6 {[%clk 0:03:00.4]} 8. Nxc4 {[%clk 0:02:59.6]}
8... Be6 {[%clk 0:03:01]} 9. Nce5 {[%clk 0:02:59.3]} 9... Bd5 {[%clk 0:03:01.3]}
10. Nxc6 {[%clk 0:02:56.8]} 10... Bxc6 {[%clk 0:03:00.9]} 11. e3 {[%clk
0:02:56.9]} 11... Nd7 {[%clk 0:02:57.3]} 12. a4 {[%clk 0:02:46]} 12... b6 {[%clk
0:02:53.2]} 13. Qc2 {[%clk 0:02:44.8]} 13... Bb7 {[%clk 0:02:53.3]} 14. Rd1
{[%clk 0:02:44.3]} 14... Rc8 {[%clk 0:02:51]} 15. a5 {[%clk 0:02:33.8]} 15...
Qe8 {[%clk 0:02:45.8]} 16. axb6 {[%clk 0:02:06.4]} 16... axb6 {[%clk 0:02:45.4]}
17. Ra7 {[%clk 0:02:05.7]} 17... Bxf3 {[%clk 0:02:45.1]} 18. Bxf3 {[%clk
0:02:05.9]} 18... c5 {[%clk 0:02:41.8]} 19. d5 {[%clk 0:01:58.9]} 19... Ne5
{[%clk 0:02:40.9]} 20. Bg2 {[%clk 0:01:59.1]} 20... Ra8 {[%clk 0:02:36.7]} 21.
Rxa8 {[%clk 0:01:56.8]} 21... Qxa8 {[%clk 0:02:36.3]} 22. d6 {[%clk 0:01:46.3]}
22... Qd8 {[%clk 0:02:35.9]} 23. d7 {[%clk 0:01:37.9]} 23... Qc7 {[%clk
0:02:35.9]} 24. Qe4 {[%clk 0:00:45.6]} 24... Rd8 {[%clk 0:02:33.8]} 25. f4
{[%clk 0:00:44.1]} 25... Rxd7 {[%clk 0:02:20.1]} 26. Rd5 {[%clk 0:00:23.4]}
26... Rxd5 {[%clk 0:02:12.4]} 27. Qxd5 {[%clk 0:00:24.3]} 27... Nd7 {[%clk
0:02:12.3]} 28. h3 {[%clk 0:00:22.3]} 28... h5 {[%clk 0:02:11.3]} 29. b3 {[%clk
0:00:21.4]} 29... Qd6 {[%clk 0:02:11.5]} 30. Qxd6 {[%clk 0:00:18]} 30... exd6
{[%clk 0:02:11.3]} 31. Bc6 {[%clk 0:00:18.5]} 31... Nf6 {[%clk 0:02:09.8]} 32.
e4 {[%clk 0:00:17.5]} 32... Bf8 {[%clk 0:02:09.1]} 33. Bb2 {[%clk 0:00:16.4]}
33... Be7 {[%clk 0:02:07.1]} 34. Kg2 {[%clk 0:00:16.5]} 34... Kf8 {[%clk
0:02:06.1]} 35. Kf3 {[%clk 0:00:16.9]} 35... Ne8 {[%clk 0:02:02.6]} 36. g4
{[%clk 0:00:17]} 36... hxg4+ {[%clk 0:02:01.7]} 37. hxg4 {[%clk 0:00:17.9]}
37... Nc7 {[%clk 0:02:01.7]} 38. g5 {[%clk 0:00:17.1]} 38... Ne6 {[%clk
0:02:00.1]} 39. Kg4 {[%clk 0:00:16.4]} 39... Nd4 {[%clk 0:01:50.7]} 40. Bxd4
{[%clk 0:00:15.7]} 40... cxd4 {[%clk 0:01:51]} 41. Kf3 {[%clk 0:00:13.7]} 41...
f6 {[%clk 0:01:49.5]} 42. gxf6 {[%clk 0:00:14]} 42... Bxf6 {[%clk 0:01:49.8]}
1/2-1/2

[Event "*** SCC Grand Prix: Titled Tuesday Blitz"]
[Site "Chess.com"]
[Date "2020.09.29"]
[Round "1"]
[White "salomez"]
[Black "Kildepiotr"]
[Result "0-1"]
[WhiteElo "2227"]
[BlackElo "2546"]
[TimeControl "180+1"]
[EndTime "10:05:51 PDT"]
[Termination "Kildepiotr won by resignation"]

1. e4 {[%clk 0:02:24.5]} 1... g6 {[%clk 0:02:58.9]} 2. d4 {[%clk 0:02:23.9]}
2... Bg7 {[%clk 0:02:58.8]} 3. Nc3 {[%clk 0:02:24]} 3... c6 {[%clk 0:02:58.7]}
4. Be3 {[%clk 0:02:24.4]} 4... d5 {[%clk 0:02:58.3]} 5. e5 {[%clk 0:02:13.9]}
5... Nh6 {[%clk 0:02:57.6]} 6. Nf3 {[%clk 0:02:06.8]} 6... Bg4 {[%clk
0:02:55.3]} 7. h3 {[%clk 0:02:05.6]} 7... Bxf3 {[%clk 0:02:54.8]} 8. Qxf3 {[%clk
0:02:06.5]} 8... Nf5 {[%clk 0:02:55]} 9. Bd3 {[%clk 0:02:06.1]} 9... Nxe3 {[%clk
0:02:50.4]} 10. fxe3 {[%clk 0:02:07]} 10... O-O {[%clk 0:02:49.6]} 11. h4 {[%clk
0:02:06.5]} 11... f6 {[%clk 0:02:49.2]} 12. e6 {[%clk 0:01:48.9]} 12... Qd6
{[%clk 0:02:48.4]} 13. h5 {[%clk 0:01:48.5]} 13... f5 {[%clk 0:02:48.5]} 14.
hxg6 {[%clk 0:01:43.1]} 14... hxg6 {[%clk 0:02:48.2]} 15. Ne2 {[%clk 0:01:40.1]}
15... Qxe6 {[%clk 0:02:38.9]} 16. Nf4 {[%clk 0:01:39.9]} 16... Qf6 {[%clk
0:02:35.4]} 17. O-O-O {[%clk 0:01:28.8]} 17... Nd7 {[%clk 0:02:33.9]} 18. Rh3
{[%clk 0:01:18.4]} 18... e5 {[%clk 0:02:31]} 19. Nxd5 {[%clk 0:00:51.6]} 19...
cxd5 {[%clk 0:02:26.7]} 20. Qxd5+ {[%clk 0:00:51.7]} 20... Qf7 {[%clk
0:02:26.9]} 21. Bc4 {[%clk 0:00:21.9]} 21... Nb6 {[%clk 0:02:20.7]} 22. Qxf7+
{[%clk 0:00:19.9]} 22... Rxf7 {[%clk 0:02:21.6]} 23. Bxf7+ {[%clk 0:00:19.5]}
23... Kxf7 {[%clk 0:02:22.1]} 24. dxe5 {[%clk 0:00:19.8]} 24... Re8 {[%clk
0:02:16.3]} 25. a4 {[%clk 0:00:06.3]} 25... Rxe5 {[%clk 0:02:15.6]} 26. b3
{[%clk 0:00:03.3]} 26... Nd5 {[%clk 0:02:11]} 27. Rd3 {[%clk 0:00:01.2]} 27...
Nf6 {[%clk 0:02:04.6]} 28. c4 {[%clk 0:00:02.1]} 28... Bf8 {[%clk 0:02:03.4]}
29. Kc2 {[%clk 0:00:01.5]} 29... Bc5 {[%clk 0:02:02.3]} 30. Rh8 {[%clk
0:00:01.8]} 30... Rxe3 {[%clk 0:01:58]} 31. Rb8 {[%clk 0:00:01.8]} 31... Re7
{[%clk 0:01:52.8]} 32. Rd2 {[%clk 0:00:01.3]} 32... g5 {[%clk 0:01:49.5]} 33.
Kc3 {[%clk 0:00:01.6]} 33... a5 {[%clk 0:01:48.4]} 34. b4 {[%clk 0:00:02.5]}
34... Bxb4+ {[%clk 0:01:48.3]} 35. Kc2 {[%clk 0:00:02.1]} 35... Bxd2 {[%clk
0:01:48]} 0-1

[Event "*** SCC Grand Prix: Titled Tuesday Blitz"]
[Site "Chess.com"]
[Date "2020.09.29"]
[Round "1"]
[White "northridgehawk"]
[Black "SilviusTiberius"]
[Result "0-1"]
[WhiteElo "2327"]
[BlackElo "2652"]
[TimeControl "180+1"]
[EndTime "10:05:52 PDT"]
[Termination "SilviusTiberius won by resignation"]

1. e4 {[%clk 0:02:50.9]} 1... c5 {[%clk 0:02:59.9]} 2. Nf3 {[%clk 0:02:49.1]}
2... Nc6 {[%clk 0:03:00.4]} 3. d4 {[%clk 0:02:46]} 3... cxd4 {[%clk 0:03:01.3]}
4. Nxd4 {[%clk 0:02:41.3]} 4... Nf6 {[%clk 0:03:01.3]} 5. Nc3 {[%clk 0:02:40.2]}
5... d6 {[%clk 0:03:00.6]} 6. f3 {[%clk 0:02:38.8]} 6... e6 {[%clk 0:02:57.9]}
7. Be3 {[%clk 0:02:34]} 7... Be7 {[%clk 0:02:58.3]} 8. Qd2 {[%clk 0:02:33.8]}
8... O-O {[%clk 0:02:58.3]} 9. O-O-O {[%clk 0:02:34.4]} 9... d5 {[%clk
0:02:58.8]} 10. exd5 {[%clk 0:02:29.8]} 10... Nxd5 {[%clk 0:02:59.7]} 11. Nxd5
{[%clk 0:02:29.4]} 11... Qxd5 {[%clk 0:03:00.6]} 12. Nb3 {[%clk 0:02:26.4]}
12... Nb4 {[%clk 0:02:58.1]} 13. Kb1 {[%clk 0:02:13.3]} 13... Qxd2 {[%clk
0:02:53.3]} 14. Rxd2 {[%clk 0:02:14.2]} 14... Nd5 {[%clk 0:02:53.4]} 15. Bd4
{[%clk 0:02:12.4]} 15... b6 {[%clk 0:02:53.5]} 16. Bd3 {[%clk 0:02:09.7]} 16...
Bb7 {[%clk 0:02:52.7]} 17. Rhd1 {[%clk 0:02:09.2]} 17... Rfd8 {[%clk 0:02:53.2]}
18. Be4 {[%clk 0:02:01.4]} 18... Rac8 {[%clk 0:02:45.5]} 19. Be5 {[%clk
0:01:43.2]} 19... f6 {[%clk 0:02:35.5]} 20. Bd4 {[%clk 0:01:39.1]} 20... f5
{[%clk 0:02:24.6]} 21. Bd3 {[%clk 0:01:37.9]} 21... Bg5 {[%clk 0:02:24]} 22. Re2
{[%clk 0:01:34.8]} 22... Nf4 {[%clk 0:02:23.9]} 23. Ree1 {[%clk 0:01:32]} 23...
Nxd3 {[%clk 0:02:11.6]} 24. Rxd3 {[%clk 0:01:30.8]} 24... Kf7 {[%clk 0:02:09.5]}
25. Rdd1 {[%clk 0:00:56.9]} 25... Bh4 {[%clk 0:01:41.7]} 26. Re2 {[%clk
0:00:33.8]} 26... Rd7 {[%clk 0:01:35.7]} 27. Rf1 {[%clk 0:00:24.2]} 27... Ba6
{[%clk 0:01:35]} 28. Ree1 {[%clk 0:00:20.9]} 28... Bxf1 {[%clk 0:01:34.3]} 29.
Rxf1 {[%clk 0:00:20.3]} 29... Rcd8 {[%clk 0:01:34.7]} 30. c3 {[%clk 0:00:18.1]}
30... Bf6 {[%clk 0:01:35.1]} 31. Re1 {[%clk 0:00:18.1]} 31... e5 {[%clk
0:01:30.4]} 32. Be3 {[%clk 0:00:17.5]} 32... Rd1+ {[%clk 0:01:31.1]} 33. Rxd1
{[%clk 0:00:17.3]} 33... Rxd1+ {[%clk 0:01:32]} 34. Kc2 {[%clk 0:00:17.6]} 34...
Rh1 {[%clk 0:01:27.3]} 35. Nd2 {[%clk 0:00:17.4]} 35... Rxh2 {[%clk 0:01:27.3]}
36. g4 {[%clk 0:00:17.4]} 36... f4 {[%clk 0:01:24.8]} 37. Bg1 {[%clk 0:00:16.9]}
37... Rg2 {[%clk 0:01:25.3]} 0-1

[Event "*** SCC Grand Prix: Titled Tuesday Blitz"]
[Site "Chess.com"]
[Date "2020.09.29"]
[Round "1"]
[White "Shivagami"]
[Black "djogrodek1"]
[Result "0-1"]
[WhiteElo "2201"]
[BlackElo "2535"]
[TimeControl "180+1"]
[EndTime "10:05:53 PDT"]
[Termination "djogrodek1 won by resignation"]

1. d4 {[%clk 0:02:59]} 1... d5 {[%clk 0:02:56.3]} 2. c4 {[%clk 0:02:57.4]} 2...
e6 {[%clk 0:02:54.2]} 3. Nc3 {[%clk 0:02:55.7]} 3... Nf6 {[%clk 0:02:52.1]} 4.
cxd5 {[%clk 0:02:56.2]} 4... exd5 {[%clk 0:02:51.1]} 5. Bg5 {[%clk 0:02:56.8]}
5... Be7 {[%clk 0:02:49]} 6. e3 {[%clk 0:02:57.2]} 6... c6 {[%clk 0:02:48.3]} 7.
Bd3 {[%clk 0:02:57.2]} 7... Nbd7 {[%clk 0:02:45.8]} 8. Nge2 {[%clk 0:02:55.4]}
8... h6 {[%clk 0:02:39.2]} 9. Bh4 {[%clk 0:02:53.4]} 9... Nh5 {[%clk 0:02:33.6]}
10. Bxe7 {[%clk 0:02:50.4]} 10... Qxe7 {[%clk 0:02:34.5]} 11. O-O {[%clk
0:02:48.8]} 11... O-O {[%clk 0:02:30]} 12. Ng3 {[%clk 0:02:42.1]} 12... Nxg3
{[%clk 0:02:21.3]} 13. hxg3 {[%clk 0:02:43]} 13... Nf6 {[%clk 0:02:17.2]} 14.
Re1 {[%clk 0:02:39]} 14... Ne4 {[%clk 0:02:14.7]} 15. Nxe4 {[%clk 0:02:14.7]}
15... dxe4 {[%clk 0:02:14.9]} 16. Bc4 {[%clk 0:02:14.7]} 16... Be6 {[%clk
0:02:13.6]} 17. Rc1 {[%clk 0:02:10.2]} 17... Rad8 {[%clk 0:02:12]} 18. Qb3
{[%clk 0:02:08.8]} 18... Bxc4 {[%clk 0:02:04]} 19. Qxc4 {[%clk 0:02:06.6]} 19...
Rd5 {[%clk 0:02:01.7]} 20. Red1 {[%clk 0:02:01.8]} 20... h5 {[%clk 0:01:59.8]}
21. Qe2 {[%clk 0:01:46.7]} 21... h4 {[%clk 0:01:57.6]} 22. gxh4 {[%clk
0:01:37.3]} 22... Qxh4 {[%clk 0:01:55.8]} 23. g3 {[%clk 0:01:37.8]} 23... Qh3
{[%clk 0:01:51.8]} 24. Qf1 {[%clk 0:01:36.9]} 24... Qg4 {[%clk 0:01:51.4]} 25.
Qg2 {[%clk 0:01:35]} 25... Rh5 {[%clk 0:01:50.1]} 26. Rf1 {[%clk 0:01:28.7]}
26... g6 {[%clk 0:01:48.8]} 27. f3 {[%clk 0:01:23.9]} 27... exf3 {[%clk
0:01:46.9]} 28. Qxf3 {[%clk 0:01:23.5]} 28... Qh3 {[%clk 0:01:43.7]} 29. Qg2
{[%clk 0:01:21.5]} 29... Qe6 {[%clk 0:01:42.6]} 30. e4 {[%clk 0:01:16.9]} 30...
Kg7 {[%clk 0:01:41]} 31. e5 {[%clk 0:00:55.7]} 31... Rfh8 {[%clk 0:01:40]} 32.
Rf6 {[%clk 0:00:56]} 32... Rh1+ {[%clk 0:01:31.2]} 33. Qxh1 {[%clk 0:00:40.6]}
33... Rxh1+ {[%clk 0:01:28.8]} 34. Kxh1 {[%clk 0:00:41.1]} 34... Qh3+ {[%clk
0:01:27.7]} 35. Kg1 {[%clk 0:00:40.5]} 35... Qxg3+ {[%clk 0:01:28.6]} 36. Kh1
{[%clk 0:00:40.5]} 36... Qh4+ {[%clk 0:01:16.6]} 37. Kg2 {[%clk 0:00:35.5]}
37... Qg5+ {[%clk 0:01:16.3]} 0-1

[Event "*** SCC Grand Prix: Titled Tuesday Blitz"]
[Site "Chess.com"]
[Date "2020.09.29"]
[Round "1"]
[White "Bigfish1995"]
[Black "Grieve72"]
[Result "1-0"]
[WhiteElo "3116"]
[BlackElo "2457"]
[TimeControl "180+1"]
[EndTime "10:05:54 PDT"]
[Termination "Bigfish1995 won by resignation"]

1. e4 {[%clk 0:03:00.9]} 1... c5 {[%clk 0:02:58.5]} 2. Nf3 {[%clk 0:03:00.7]}
2... e6 {[%clk 0:02:58.8]} 3. b3 {[%clk 0:02:59.7]} 3... Nc6 {[%clk 0:02:57.9]}
4. Bb2 {[%clk 0:02:59.3]} 4... d6 {[%clk 0:02:43.1]} 5. d4 {[%clk 0:02:56.4]}
5... cxd4 {[%clk 0:02:41]} 6. Nxd4 {[%clk 0:02:56.5]} 6... Nf6 {[%clk
0:02:38.7]} 7. Bd3 {[%clk 0:02:56.3]} 7... Be7 {[%clk 0:02:33.3]} 8. O-O {[%clk
0:02:54.7]} 8... O-O {[%clk 0:02:33.7]} 9. c4 {[%clk 0:02:54.5]} 9... a6 {[%clk
0:02:25.4]} 10. Qe2 {[%clk 0:02:49.2]} 10... Qc7 {[%clk 0:02:24.7]} 11. Nxc6
{[%clk 0:02:44]} 11... bxc6 {[%clk 0:02:03.2]} 12. e5 {[%clk 0:02:43.9]} 12...
dxe5 {[%clk 0:02:01.9]} 13. Bxe5 {[%clk 0:02:43.8]} 13... Bd6 {[%clk 0:01:40]}
14. Bxd6 {[%clk 0:02:37.8]} 14... Qxd6 {[%clk 0:01:40.9]} 15. Rd1 {[%clk
0:02:37.9]} 15... Qf4 {[%clk 0:01:31.3]} 16. g3 {[%clk 0:02:34.6]} 16... Qg5
{[%clk 0:01:23.1]} 17. Nc3 {[%clk 0:02:29.1]} 17... c5 {[%clk 0:01:18.1]} 18.
Ne4 {[%clk 0:02:25.3]} 18... Qe5 {[%clk 0:01:02.8]} 19. Nxf6+ {[%clk 0:02:20.2]}
19... gxf6 {[%clk 0:01:03.7]} 20. Qxe5 {[%clk 0:02:03]} 20... fxe5 {[%clk
0:01:04.6]} 21. Be4 {[%clk 0:02:03.2]} 21... Ra7 {[%clk 0:00:56.7]} 22. Rd6
{[%clk 0:02:03.2]} 22... Rc7 {[%clk 0:00:36.2]} 23. Rad1 {[%clk 0:02:01.7]}
23... f5 {[%clk 0:00:36.1]} 24. Bc6 {[%clk 0:02:01.4]} 24... Kf7 {[%clk
0:00:35.1]} 25. Bd7 {[%clk 0:01:55.9]} 25... Bxd7 {[%clk 0:00:19.7]} 26. Rxd7+
{[%clk 0:01:55.9]} 26... Rxd7 {[%clk 0:00:20.6]} 27. Rxd7+ {[%clk 0:01:56.1]}
27... Kf6 {[%clk 0:00:17]} 28. Rxh7 {[%clk 0:01:55.6]} 28... Rd8 {[%clk
0:00:16.2]} 29. Ra7 {[%clk 0:01:55.4]} 29... Rd6 {[%clk 0:00:16.1]} 30. Kf1
{[%clk 0:01:54.3]} 30... e4 {[%clk 0:00:13.3]} 31. Ke2 {[%clk 0:01:54.4]} 31...
Ke5 {[%clk 0:00:13.9]} 32. h4 {[%clk 0:01:53.8]} 32... Kd4 {[%clk 0:00:13.5]}
33. h5 {[%clk 0:01:52.8]} 33... e5 {[%clk 0:00:13]} 34. Rf7 {[%clk 0:01:53.4]}
34... Kc3 {[%clk 0:00:07.7]} 35. Rxf5 {[%clk 0:01:53]} 35... Rd2+ {[%clk
0:00:07.7]} 36. Ke3 {[%clk 0:01:53.4]} 36... Rxa2 {[%clk 0:00:08.2]} 37. h6
{[%clk 0:01:53.8]} 37... Rd2 {[%clk 0:00:06.7]} 38. Rh5 {[%clk 0:01:53]} 38...
Rd8 {[%clk 0:00:06.6]} 39. h7 {[%clk 0:01:52.8]} 39... Rh8 {[%clk 0:00:07.2]}
40. Kxe4 {[%clk 0:01:49.7]} 40... Kxb3 {[%clk 0:00:07.2]} 41. Kxe5 {[%clk
0:01:50.3]} 41... a5 {[%clk 0:00:07.6]} 42. Kf6 {[%clk 0:01:50.9]} 42... a4
{[%clk 0:00:08.1]} 43. Kg7 {[%clk 0:01:51.5]} 43... Ra8 {[%clk 0:00:03.4]} 44.
h8=Q {[%clk 0:01:51.5]} 1-0